bitfinex/quotes_BTCUSD_20260104
["timestamp","ask_amount","ask_price","bid_price","bid_amount"]
[1767517298313,0.09232606,91323.0,91318.0,0.04511941]
[1767517298473,0.08232606,91323.0,91318.0,0.0451747]
[1767517299007,0.08232606,91323.0,91318.0,0.05612544]
[1767517299369,0.08232606,91323.0,91318.0,0.0451747]
[1767517301018,0.0932762,91323.0,91318.0,0.0451747]
[1767517301247,0.08232606,91323.0,91318.0,0.0451747]
[1767517302206,0.01095038,91321.0,91318.0,0.0451747]
[1767517302516,0.14802808,91323.0,91318.0,0.0451747]
[1767517303124,0.01095026,91322.0,91318.0,0.0451747]
[1767517303779,0.01095038,91321.0,91318.0,0.0451747]
[1767517303988,0.06570162,91322.0,91318.0,0.0451747]
[1767517305191,0.01095026,91322.0,91318.0,0.0451747]
[1767517305756,0.01095038,91321.0,91318.0,0.0451747]
[1767517306345,0.06570166,91322.0,91318.0,0.0451747]
[1767517306545,0.01095014,91323.0,91318.0,0.0451747]
[1767517306546,0.08232606,91321.0,91318.0,0.0451747]
[1767517308012,0.14802851,91321.0,91318.0,0.0451747]
[1767517308227,0.09327644,91321.0,91318.0,0.0451747]
[1767517308676,0.08232606,91321.0,91318.0,0.0451747]
[1767517309808,0.09327644,91321.0,91318.0,0.0451747]
[1767517310009,0.08232606,91321.0,91318.0,0.0451747]
[1767517319363,0.06500662,91321.0,91319.0,0.04511941]
[1767517319569,0.0102881,91321.0,91319.0,0.04511941]
[1767517319770,3.27e-06,91325.0,91319.0,0.05607003]
[1767517320003,3.27e-06,91325.0,91319.0,0.04511941]
[1767517320960,0.01095317,91325.0,91319.0,0.04511941]
[1767517321173,0.06570292,91325.0,91319.0,0.04511941]
[1767517321443,0.05475018,91324.0,91319.0,0.04412041]
[1767517321647,0.05475078,91323.0,91318.0,5.529e-05]
[1767517321846,0.01095026,91322.0,91315.0,0.02192]
[1767517322024,0.06570208,91322.0,91315.0,0.02196352]
[1767517322223,0.01095002,91324.0,91316.0,0.04989787]
[1767517323030,0.01095317,91325.0,91316.0,0.06084885]
[1767517323194,0.06570046,91324.0,91316.0,0.04989787]
[1767517323400,0.06570107,91323.0,91316.0,0.04989787]
[1767517323833,0.06570107,91323.0,91316.0,0.04985385]
[1767517324247,0.01095014,91323.0,91316.0,0.04985385]
[1767517324446,0.0657009,91323.0,91315.0,0.02196352]
[1767517324649,0.0657009,91323.0,91316.0,0.04989787]
[1767517324851,0.01095014,91323.0,91316.0,0.04980798]
[1767517325014,0.01095038,91321.0,91316.0,0.04980798]
[1767517325212,0.01095038,91321.0,91315.0,0.02196352]
[1767517325213,0.0109505,91320.0,91315.0,0.02196352]
[1767517325419,0.01095038,91321.0,91315.0,0.02196352]
[1767517325839,0.06570229,91321.0,91320.0,0.00065057]
[1767517326042,0.01095074,91318.0,91315.0,0.02196352]
[1767517326221,0.07501266,91315.0,91312.0,0.0001518]
[1767517326438,0.05452379,91313.0,91312.0,0.0001518]
[1767517327025,0.05452379,91313.0,91312.0,6.193e-05]
[1767517327623,0.2190079,91321.0,91306.0,0.01118255]
[1767517327823,0.0109505,91320.0,91308.0,0.01095194]
[1767517328028,0.06570277,91321.0,91320.0,0.000999]
[1767517328225,0.05475154,91322.0,91320.0,0.00081928]
[1767517328465,0.05475191,91321.0,91320.0,0.00077435]
[1767517328619,0.06574825,91320.0,91311.0,0.04989787]
[1767517328970,0.06574825,91320.0,91311.0,0.06084945]
[1767517329588,0.06574825,91320.0,91311.0,0.04989787]
[1767517330271,0.01095062,91319.0,91311.0,0.04989787]
[1767517330656,0.01095074,91318.0,91311.0,0.04989787]
[1767517330856,0.01095086,91317.0,91311.0,0.04989787]
[1767517331038,0.06570456,91318.0,91311.0,0.04989787]
[1767517331039,0.01095074,91318.0,91311.0,0.04985386]
[1767517331243,0.01095062,91319.0,91311.0,0.04985386]
[1767517331437,0.06570311,91320.0,91311.0,0.06080544]
[1767517331641,0.06570311,91320.0,91306.0,0.01118255]
[1767517331642,0.01095254,91303.0,91286.0,0.01095458]
[1767517331840,0.01095278,91301.0,91295.0,0.04989787]
[1767517332139,0.06571761,91300.0,91295.0,0.04989787]
[1767517332381,0.06571722,91301.0,91295.0,0.04989787]
[1767517332582,0.0109529,91300.0,91295.0,0.04989787]
[1767517332799,0.02190862,91300.0,91295.0,0.04989787]
[1767517333158,0.0109529,91300.0,91295.0,0.04989787]
[1767517333363,0.01095302,91299.0,91295.0,0.04989787]
[1767517333763,0.08747976,91298.0,91295.0,0.04989787]
[1767517334481,0.0984329,91298.0,91295.0,0.04989787]
[1767517334681,0.08747976,91298.0,91295.0,0.04989787]
[1767517335425,0.0984329,91298.0,91295.0,0.04989787]
[1767517335978,0.05476691,91296.0,91295.0,0.04885486]
[1767517336282,0.0984329,91298.0,91295.0,0.04885486]
[1767517336739,0.15319877,91298.0,91295.0,0.04885486]
[1767517337102,0.15319865,91298.0,91295.0,0.04885486]
[1767517338952,0.05476657,91297.0,91295.0,0.04885486]
[1767517339770,0.15319865,91298.0,91295.0,0.04885486]
[1767517340333,0.08747976,91298.0,91295.0,0.04885486]
[1767517340926,0.08648076,91298.0,91295.0,0.04885486]
[1767517341125,0.07461957,91298.0,91295.0,0.04885486]
[1767517342530,0.07461957,91298.0,91291.0,0.02192]
[1767517342735,0.07461957,91298.0,91291.0,0.07181787]
[1767517342883,0.08557271,91298.0,91291.0,0.07181787]
[1767517343088,0.07461957,91298.0,91291.0,0.07181787]
[1767517343720,0.08557271,91298.0,91291.0,0.07181787]
[1767517343922,0.1403386,91298.0,91291.0,0.07181787]
[1767517344368,0.06571986,91297.0,91291.0,0.07081887]
[1767517344575,0.01095338,91296.0,91292.0,0.04989787]
[1767517344925,0.06571986,91297.0,91292.0,0.04989787]
[1767517345129,0.01095338,91296.0,91292.0,0.04989787]
[1767517345336,0.01095314,91298.0,91292.0,0.04989787]
[1767517345535,0.0657193,91298.0,91292.0,0.04989787]
[1767517345736,0.06571967,91297.0,91292.0,0.04989787]
[1767517346194,0.01095326,91297.0,91292.0,0.04989787]
[1767517346351,0.01095326,91297.0,91292.0,0.05025925]
[1767517346784,0.06571959,91297.0,91292.0,0.05025925]
[1767517347083,0.07461957,91296.0,91292.0,0.05025925]
[1767517351553,0.0109535,91295.0,91292.0,0.05025925]
[1767517351764,0.14034037,91296.0,91292.0,0.05025925]
[1767517352425,0.0109535,91295.0,91292.0,0.00036138]
[1767517352822,0.01095374,91293.0,91290.0,0.02192]
[1767517353010,0.01095374,91293.0,91289.0,0.02192]
[1767517353519,0.01095362,91294.0,91293.0,0.00065056]
[1767517353520,0.06572198,91294.0,91293.0,0.00065056]
[1767517353745,0.01095374,91293.0,91289.0,0.02192]
[1767517353944,0.06572198,91294.0,91289.0,0.02192]
[1767517354111,0.01095374,91293.0,91289.0,0.02192]
[1767517354312,0.01095386,91292.0,91289.0,0.02192]
[1767517354513,0.06222924,91289.0,91285.0,0.02192]
[1767517354759,0.00745769,91289.0,91285.0,0.02201891]
[1767517354961,0.0109541,91290.0,91286.0,0.04788225]
[1767517355374,0.06572399,91291.0,91289.0,0.00065055]
[1767517355575,0.01984937,91290.0,91289.0,0.00065055]
[1767517356142,0.07461988,91290.0,91289.0,0.00065055]
[1767517358108,0.01984937,91290.0,91289.0,0.00065055]
[1767517358489,0.07461988,91290.0,91289.0,0.00065055]
[1767517358706,0.07461988,91290.0,91289.0,0.0485328]
[1767517359270,0.05477051,91290.0,91289.0,0.0485328]
[1767517361107,0.01095422,91289.0,91285.0,0.02201891]
[1767517361313,0.01095422,91289.0,91286.0,0.04788225]
[1767517362245,0.0657255,91289.0,91286.0,0.04788225]
[1767517362473,0.05477179,91288.0,91286.0,0.04788225]
[1767517362630,0.06204499,91288.0,91285.0,9.891e-05]
[1767517362814,0.01095434,91288.0,91285.0,9.891e-05]
[1767517363896,0.05477234,91287.0,91285.0,9.891e-05]
[1767517364055,0.05477234,91287.0,91285.0,5.398e-05]
[1767517364658,0.05477291,91286.0,91285.0,5.398e-05]
[1767517364859,0.05477291,91286.0,91285.0,9.8e-07]
[1767517367885,0.05471991,91286.0,91285.0,9.8e-07]
[1767517368187,0.05477234,91287.0,91285.0,9.8e-07]
[1767517369454,0.06572612,91288.0,91285.0,9.8e-07]
[1767517369649,0.00914051,91287.0,91285.0,9.8e-07]
[1767517369871,0.01095446,91287.0,91278.0,0.05477768]
[1767517370055,0.01095446,91287.0,91279.0,0.01095542]
[1767517370467,0.01095434,91288.0,91279.0,0.06573252]
[1767517370678,0.01095446,91287.0,91273.0,0.18787764]
[1767517370885,0.01095446,91287.0,91277.0,0.05477787]
[1767517371085,0.01095446,91287.0,91280.0,0.04788225]
[1767517375287,0.00010832,91288.0,91280.0,0.04788225]
[1767517375472,0.05488006,91288.0,91280.0,0.04788225]
[1767517376093,0.01106266,91288.0,91280.0,0.04788225]
[1767517376232,0.01106266,91288.0,91280.0,0.05883755]
[1767517376448,0.01095482,91284.0,91280.0,0.04688325]
[1767517376871,0.06572764,91286.0,91280.0,0.04688325]
[1767517377074,0.01095482,91284.0,91280.0,0.04688325]
[1767517377305,0.06572871,91285.0,91280.0,0.04683832]
[1767517377511,0.01095482,91284.0,91280.0,0.04683832]
[1767517377858,0.06572871,91285.0,91280.0,0.04683832]
[1767517378303,0.01095482,91284.0,91280.0,0.04683832]
[1767517378431,0.06572871,91285.0,91280.0,0.04683832]
[1767517379527,0.00010832,91288.0,91285.0,0.010999]
[1767517379687,0.01106266,91288.0,91285.0,0.05888125]
[1767517379848,0.01106266,91288.0,91285.0,0.05788225]
[1767517380046,0.01106266,91288.0,91285.0,0.04788225]
[1767517380487,0.05477247,91287.0,91285.0,0.04788225]
[1767517380910,0.05477291,91286.0,91285.0,0.04788225]
[1767517381125,0.05477231,91287.0,91285.0,0.04788225]
[1767517381332,0.01106266,91288.0,91287.0,0.000999]
[1767517381567,0.01106266,91288.0,91285.0,0.04788225]
[1767517381793,0.00010832,91288.0,91285.0,0.04788225]
[1767517382593,0.0109541,91290.0,91288.0,0.04776634]
[1767517382797,0.0109541,91290.0,91288.0,0.04756816]
[1767517382798,0.05477111,91289.0,91288.0,0.04756816]
[1767517383200,0.05477111,91289.0,91281.0,0.04755002]
[1767517384608,0.06572533,91289.0,91281.0,0.04755002]
[1767517384780,0.06572619,91288.0,91281.0,0.04755002]
[1767517384979,0.06572619,91288.0,91281.0,0.04746015]
[1767517385415,0.01095434,91288.0,91281.0,0.04746015]
[1767517388293,0.06572533,91289.0,91281.0,0.04746015]
[1767517388625,0.01095434,91288.0,91281.0,0.04746015]
[1767517389868,0.02192,91291.0,91281.0,0.05841533]
[1767517390049,0.03287398,91291.0,91289.0,0.04755002]
[1767517390441,0.05477051,91290.0,91289.0,0.04755002]
[1767517391169,0.08764438,91291.0,91289.0,0.04755002]
[1767517391690,0.0657254,91289.0,91281.0,0.04755002]
[1767517391846,0.01095422,91289.0,91281.0,0.04755002]
[1767517393060,0.01095434,91288.0,91281.0,0.04755002]
[1767517393679,0.05477324,91286.0,91281.0,0.04755002]
[1767517393942,0.01095446,91287.0,91281.0,0.04755002]
[1767517394072,0.01095458,91286.0,91281.0,0.04755002]
[1767517394288,0.06572631,91288.0,91281.0,0.04755002]
[1767517395195,0.01095446,91287.0,91281.0,0.04755002]
[1767517395964,0.01089958,91287.0,91281.0,0.04755002]
[1767517396257,0.05477051,91290.0,91281.0,0.04755002]
[1767517396465,0.0109541,91290.0,91283.0,0.04755002]
[1767517396763,0.01095422,91289.0,91281.0,0.01095518]
[1767517396919,0.01095422,91289.0,91280.0,0.06573143]
[1767517397125,0.06572545,91289.0,91280.0,0.0109553]
[1767517397621,0.01095422,91289.0,91280.0,0.06573131]
[1767517397826,0.01095434,91288.0,91280.0,0.0109553]
[1767517398392,0.01095422,91289.0,91280.0,0.01086543]
[1767517398594,0.06572508,91290.0,91281.0,0.01095518]
[1767517398794,0.06572537,91289.0,91282.0,0.04755002]
[1767517399285,0.01095434,91288.0,91282.0,0.04755002]
[1767517399416,0.06572467,91290.0,91282.0,0.04755002]
[1767517400086,0.0109541,91290.0,91282.0,0.05850508]
[1767517400292,0.00133198,91289.0,91282.0,0.00962308]
[1767517400939,0.0109541,91290.0,91282.0,0.00962308]
[1767517401117,0.0109541,91290.0,91283.0,0.04755002]
[1767517403786,0.01095422,91289.0,91283.0,0.04755002]
[1767517403989,0.0109541,91290.0,91283.0,0.04755002]
[1767517404901,0.08764395,91291.0,91283.0,0.04755002]
[1767517405690,0.05477058,91290.0,91283.0,0.04755002]
[1767517406419,0.0109541,91290.0,91283.0,0.04755002]
[1767517407037,0.06572483,91290.0,91283.0,0.04755002]
[1767517407315,0.03287398,91291.0,91283.0,0.05850496]
[1767517407727,0.0109541,91290.0,91283.0,0.04755002]
[1767517410462,0.08764406,91291.0,91283.0,0.05850496]
[1767517411359,0.0109541,91290.0,91283.0,0.04755002]
[1767517412081,0.06572496,91290.0,91283.0,0.04755002]
[1767517412269,0.06572496,91290.0,91281.0,0.06573106]
[1767517412566,0.0109541,91290.0,91281.0,0.06573106]
[1767517412862,0.06572477,91290.0,91282.0,0.01095506]
[1767517413063,0.06572569,91289.0,91281.0,0.01095518]
[1767517413266,0.01095422,91289.0,91281.0,0.01095518]
[1767517413878,0.01095434,91288.0,91280.0,0.06573133]
[1767517414234,0.06572549,91289.0,91280.0,0.06573133]
[1767517414458,0.06572549,91289.0,91281.0,0.01095518]
[1767517415576,0.06572549,91289.0,91279.0,0.08765248]
[1767517415577,0.01095482,91284.0,91279.0,0.02192]
[1767517415891,0.05477471,91283.0,91280.0,0.04576944]
[1767517416107,0.06572965,91283.0,91280.0,0.04576944]
[1767517416310,0.05477471,91283.0,91280.0,0.04576944]
[1767517416462,0.06572965,91283.0,91280.0,0.04576944]
[1767517416800,0.01095494,91283.0,91280.0,0.04576944]
[1767517417822,0.05477406,91285.0,91280.0,0.04576944]
[1767517418038,0.01095482,91284.0,91280.0,0.04576944]
[1767517418167,0.06572876,91285.0,91280.0,0.04576944]
[1767517418372,0.0109547,91285.0,91280.0,0.04576944]
[1767517418572,0.06572825,91285.0,91280.0,0.04576944]
[1767517419544,0.01095482,91284.0,91280.0,0.04576944]
[1767517419770,0.01095494,91283.0,91279.0,0.02192]
[1767517419906,0.01095494,91283.0,91279.0,0.06764543]
[1767517420111,0.01095506,91282.0,91280.0,0.04576944]
[1767517420307,0.01095494,91283.0,91279.0,0.02187599]
[1767517420833,0.01095506,91282.0,91279.0,0.02187599]
[1767517421020,0.06573012,91283.0,91280.0,0.04576944]
[1767517421220,0.01095482,91284.0,91280.0,0.04576944]
[1767517421416,0.01095494,91283.0,91280.0,0.04576944]
[1767517421778,0.06572978,91283.0,91280.0,0.04576944]
[1767517422459,0.01095494,91283.0,91280.0,0.04576944]
[1767517422606,0.06572952,91284.0,91280.0,0.04576944]
[1767517422967,0.01095494,91283.0,91280.0,0.04576944]
[1767517423118,0.06572952,91284.0,91280.0,0.04576944]
[1767517423318,0.06572952,91284.0,91273.0,0.01095614]
[1767517423319,0.01095566,91277.0,91272.0,0.04576944]
[1767517423542,0.01095518,91281.0,91272.0,0.05683402]
[1767517423744,0.06573181,91280.0,91272.0,0.04587776]
[1767517424055,0.01095542,91279.0,91272.0,0.04587776]
[1767517424223,0.01095542,91279.0,91272.0,0.05683402]
[1767517424424,0.06568687,91280.0,91279.0,0.04676844]
[1767517424822,0.06568687,91280.0,91279.0,0.04576944]
[1767517425226,0.01095566,91277.0,91272.0,0.04587776]
[1767517425427,0.01095578,91276.0,91272.0,0.04587776]
[1767517425846,0.06573484,91276.0,91272.0,0.04587776]
[1767517426570,0.06573561,91275.0,91272.0,0.04587776]
[1767517426743,0.05478071,91273.0,91272.0,0.04587776]
[1767517427566,0.05478015,91274.0,91273.0,0.04676844]
[1767517427771,0.06573544,91275.0,91273.0,0.04576944]
[1767517427969,0.02192,91287.0,91275.0,0.0109559]
[1767517428256,0.05477413,91284.0,91277.0,0.04576944]
[1767517429081,0.05477352,91285.0,91277.0,0.04576944]
[1767517429530,0.01095494,91283.0,91277.0,0.04576944]
[1767517429808,0.02192,91288.0,91280.0,0.04576944]
[1767517430029,0.03287434,91288.0,91284.0,0.04576944]
[1767517430602,0.02192,91288.0,91284.0,0.04576944]
[1767517430807,0.08764393,91291.0,91284.0,0.04576944]
[1767517431020,0.0109541,91290.0,91284.0,0.04576944]
[1767517431218,0.01095422,91289.0,91284.0,0.04576944]
[1767517431706,0.0109541,91290.0,91284.0,0.04576944]
[1767517431903,0.0109541,91290.0,91284.0,0.04548415]
[1767517432250,0.08764393,91291.0,91284.0,0.04548415]
[1767517432747,0.03287374,91293.0,91287.0,0.04576944]
[1767517432895,0.02192,91293.0,91287.0,0.04576944]
[1767517433106,0.03287374,91293.0,91287.0,0.04576944]
[1767517433306,0.02192,91293.0,91287.0,0.04576944]
[1767517434388,0.01192,91293.0,91287.0,0.0567239]
[1767517434978,0.01192,91293.0,91289.0,0.04576944]
[1767517437850,0.01192,91293.0,91289.0,0.04548416]
[1767517438592,0.02287374,91293.0,91289.0,0.04548416]
[1767517438768,0.02287374,91293.0,91285.0,0.06572818]
[1767517438970,0.01192,91293.0,91286.0,0.01095458]
[1767517439294,0.02287374,91293.0,91286.0,0.05672402]
[1767517439497,0.02287374,91293.0,91286.0,0.04576944]
[1767517439701,0.02287374,91293.0,91286.0,0.05672402]
[1767517440904,0.01095386,91292.0,91286.0,0.04576944]
[1767517441473,0.01095398,91291.0,91286.0,0.04576944]
[1767517442068,0.06572337,91292.0,91286.0,0.04576944]
[1767517442276,0.07764245,91293.0,91286.0,0.04576944]
[1767517442893,0.02287374,91293.0,91286.0,0.04576944]
[1767517443410,0.01095386,91292.0,91286.0,0.04576944]
[1767517444374,0.07764251,91293.0,91286.0,0.04576944]
[1767517444375,0.02287374,91293.0,91286.0,0.05672402]
[1767517444762,0.02287374,91293.0,91286.0,0.04576944]
[1767517445190,0.07764253,91293.0,91286.0,0.04576944]
[1767517445418,0.01095386,91292.0,91286.0,0.04576944]
[1767517445576,0.01095398,91291.0,91286.0,0.04576944]
[1767517445768,0.06572327,91292.0,91286.0,0.04576944]
[1767517445986,0.07764253,91293.0,91286.0,0.04576944]
[1767517447658,0.08917852,91293.0,91285.0,0.06572817]
[1767517447935,0.07764253,91293.0,91285.0,0.06572817]
[1767517448437,0.01095386,91292.0,91285.0,0.0109547]
[1767517449022,0.07764253,91293.0,91285.0,0.0109547]
[1767517449202,0.01,91285.0,91281.0,0.02192]
[1767517450455,0.01,91285.0,91281.0,0.06745335]
[1767517451495,0.01,91285.0,91282.0,0.04553335]
[1767517451700,0.01095446,91287.0,91282.0,0.04553335]
[1767517451920,0.06572636,91289.0,91282.0,0.04553335]
[1767517452125,0.01095434,91288.0,91282.0,0.04553335]
[1767517452834,0.06572618,91288.0,91281.0,0.02192]
[1767517453553,0.06572618,91288.0,91281.0,0.03287518]
[1767517453755,0.01095446,91287.0,91281.0,0.02192]
[1767517454596,0.01095458,91286.0,91281.0,0.06745335]
[1767517454800,0.0657269,91287.0,91281.0,0.06745335]
[1767517454960,0.01095458,91286.0,91281.0,0.06745335]
[1767517455157,0.01088588,91286.0,91282.0,0.04553335]
[1767517456072,0.06565884,91286.0,91282.0,0.04553335]
[1767517456247,0.06572607,91288.0,91282.0,0.04553335]
[1767517457571,0.05477251,91287.0,91282.0,0.04553335]
[1767517457756,0.06572697,91287.0,91282.0,0.04553335]
[1767517458366,0.01095446,91287.0,91282.0,0.04553335]
[1767517458568,0.06572607,91288.0,91282.0,0.04553335]
[1767517459111,0.01095446,91287.0,91282.0,0.04553335]
[1767517459328,0.0657268,91287.0,91282.0,0.04553335]
[1767517459552,0.0657268,91287.0,91281.0,0.02192]
[1767517460394,0.0657268,91287.0,91281.0,0.06745335]
[1767517460594,0.0547752,91283.0,91281.0,0.02192]
[1767517460791,0.05477531,91282.0,91281.0,0.02192]
[1767517461199,0.0547752,91283.0,91281.0,0.02192]
[1767517461934,0.0547752,91283.0,91281.0,0.01003218]
[1767517462340,0.06572932,91284.0,91281.0,0.01003218]
[1767517462532,0.06572932,91284.0,91283.0,0.000999]
[1767517462722,0.01095482,91284.0,91281.0,0.05556553]
[1767517462922,0.06572826,91285.0,91281.0,0.05556553]
[1767517463587,0.06572826,91285.0,91281.0,0.01003218]
[1767517463728,0.01095458,91286.0,91279.0,0.01041619]
[1767517463950,0.06572605,91288.0,91286.0,0.000999]
[1767517464149,0.05477231,91287.0,91286.0,1e-08]
[1767517464352,0.06572677,91287.0,91279.0,0.02137161]
[1767517464550,0.06572605,91288.0,91280.0,0.0109553]
[1767517465021,0.01095446,91287.0,91279.0,0.02137161]
[1767517465215,0.06572681,91287.0,91280.0,0.04553335]
[1767517465439,0.06572605,91288.0,91280.0,0.05648865]
[1767517465921,0.01095446,91287.0,91280.0,0.05648865]
[1767517466325,0.06572605,91288.0,91280.0,0.05648865]
[1767517467139,0.06572605,91288.0,91281.0,0.05648853]
[1767517467376,0.06572605,91288.0,91281.0,0.04553335]
[1767517468043,0.01095446,91287.0,91281.0,0.04553335]
[1767517468695,0.06572605,91288.0,91281.0,0.04553335]
[1767517469041,0.06572605,91288.0,91281.0,0.05648853]
[1767517469331,0.06572605,91288.0,91281.0,0.04553335]
[1767517469538,0.06572605,91288.0,91281.0,0.05648853]
[1767517470321,0.06572605,91288.0,91281.0,0.04553335]
[1767517471144,0.01095446,91287.0,91281.0,0.04553335]
[1767517471399,0.01090952,91287.0,91281.0,0.04553335]
[1767517471940,0.06568187,91287.0,91281.0,0.04553335]
[1767517472148,0.01095458,91286.0,91281.0,0.04553335]
[1767517472627,0.0109547,91285.0,91281.0,0.04553335]
[1767517472821,0.06572757,91286.0,91281.0,0.04553335]
[1767517473080,0.01095458,91286.0,91281.0,0.04553335]
[1767517473574,0.06568187,91287.0,91281.0,0.04553335]
[1767517474244,0.01090952,91287.0,91281.0,0.04553335]
[1767517474974,0.06572609,91288.0,91281.0,0.04553335]
[1767517476651,0.01095434,91288.0,91282.0,0.04605957]
[1767517476851,0.01095434,91288.0,91282.0,0.03963896]
[1767517477052,0.06572613,91288.0,91282.0,0.03963896]
[1767517477255,0.07764249,91293.0,91284.0,0.01095482]
[1767517477463,0.07764249,91293.0,91286.0,0.01095458]
[1767517478166,0.01192,91293.0,91286.0,0.01095458]
[1767517478691,0.07764257,91293.0,91285.0,0.06572798]
[1767517479004,0.06572344,91292.0,91284.0,0.06572891]
[1767517479128,0.06572344,91292.0,91284.0,0.06572879]
[1767517480154,0.065724,91291.0,91283.0,0.01095494]
[1767517480486,0.065724,91291.0,91284.0,0.01095482]
[1767517480624,0.065724,91291.0,91283.0,0.06572949]
[1767517481242,0.06572486,91290.0,91282.0,0.06573033]
[1767517481925,0.0109541,91290.0,91283.0,0.01095494]
[1767517482134,0.06572405,91291.0,91284.0,0.01095482]
[1767517482823,0.01095386,91292.0,91285.0,0.0109547]
[1767517483003,0.07764256,91293.0,91285.0,0.06572813]
[1767517483207,0.07764256,91293.0,91286.0,0.01095458]
[1767517483750,0.01095398,91291.0,91284.0,0.06572866]
[1767517484145,0.06572321,91292.0,91284.0,0.06572866]
[1767517484327,0.01095398,91291.0,91284.0,0.06572874]
[1767517484531,0.06572321,91292.0,91285.0,0.0109547]
[1767517485029,0.06572321,91292.0,91284.0,0.06572874]
[1767517485233,0.01095398,91291.0,91284.0,0.06572874]
[1767517485433,0.01095386,91292.0,91285.0,0.0109547]
[1767517485981,0.01095398,91291.0,91284.0,0.06572874]
[1767517486167,0.0657241,91291.0,91283.0,0.06572846]
[1767517486366,0.0657241,91291.0,91283.0,0.01095494]
[1767517486969,0.0109541,91290.0,91283.0,0.06572947]
[1767517487597,0.06572461,91290.0,91283.0,0.01095494]
[1767517487951,0.0109541,91290.0,91283.0,0.06572951]
[1767517489103,0.0657241,91291.0,91284.0,0.01095482]
[1767517489307,0.0657241,91291.0,91283.0,0.06572951]
[1767517489801,0.06572487,91290.0,91282.0,0.01095506]
[1767517490007,0.06572563,91289.0,91281.0,0.01095518]
[1767517490235,0.06572563,91289.0,91282.0,0.01095506]
[1767517490446,0.01095434,91288.0,91281.0,0.01095518]
[1767517490639,0.01095446,91287.0,91280.0,0.04605957]
[1767517490777,0.01095434,91288.0,91280.0,0.11179129]
[1767517490980,0.01095422,91289.0,91282.0,0.01095506]
[1767517491189,0.06572565,91289.0,91282.0,0.01095506]
[1767517491416,0.01095434,91288.0,91281.0,0.01095518]
[1767517491609,0.06572565,91289.0,91282.0,0.01095506]
[1767517491881,0.01095446,91287.0,91281.0,0.01095518]
[1767517492213,0.01095434,91288.0,91281.0,0.01095518]
[1767517492646,0.06572565,91289.0,91282.0,0.01095506]
[1767517492834,0.06572463,91290.0,91282.0,0.01095506]
[1767517493038,0.01095422,91289.0,91281.0,0.06573097]
[1767517493237,0.01095434,91288.0,91281.0,0.01095518]
[1767517493458,0.01095434,91288.0,91281.0,0.06573075]
[1767517494203,0.06572582,91289.0,91282.0,0.01095506]
[1767517494689,0.0657264,91288.0,91280.0,0.1584076]
[1767517494896,0.01095434,91288.0,91281.0,0.01095518]
[1767517495110,0.01095446,91287.0,91280.0,0.2241389]
[1767517495291,0.06572619,91288.0,91281.0,0.01095518]
[1767517495506,0.0109541,91290.0,91282.0,0.10083428]
[1767517495870,0.06572503,91290.0,91282.0,0.11178934]
[1767517496073,0.06572503,91290.0,91283.0,0.01095494]
[1767517496589,0.0109541,91290.0,91283.0,0.06572962]
[1767517496904,0.0109541,91290.0,91284.0,0.01095482]
[1767517497103,0.0109541,91290.0,91283.0,0.06572962]
[1767517497794,0.0109541,91290.0,91284.0,0.01095482]
[1767517497955,0.06572497,91291.0,91284.0,0.01095482]
[1767517498160,0.07764349,91293.0,91286.0,0.04605957]
[1767517498403,0.02287374,91293.0,91286.0,0.05701415]
[1767517498783,0.01095386,91292.0,91286.0,0.04605957]
[1767517498993,0.0776426,91293.0,91286.0,0.05701415]
[1767517499201,0.01095386,91292.0,91286.0,0.04605957]
[1767517499464,0.0776426,91293.0,91286.0,0.05701415]
[1767517500197,0.0776426,91293.0,91286.0,0.04605957]
[1767517500402,0.0776426,91293.0,91286.0,0.05701415]
[1767517500622,0.05476935,91292.0,91286.0,0.04605957]
[1767517500781,0.01095386,91292.0,91286.0,0.04605957]
[1767517500990,0.01095398,91291.0,91286.0,0.04605957]
[1767517501448,0.000999,91286.0,91283.0,0.06016679]
[1767517501660,0.000999,91286.0,91283.0,0.04921185]
[1767517501849,0.000999,91286.0,91283.0,0.06016679]
[1767517502005,0.06572462,91290.0,91284.0,0.04921185]
[1767517502006,0.0109541,91290.0,91284.0,0.04921185]
[1767517502433,0.01095422,91289.0,91284.0,0.04921185]
[1767517502647,0.06572465,91290.0,91284.0,0.04921185]
[1767517502903,0.01095422,91289.0,91284.0,0.04921185]
[1767517503846,0.06572554,91289.0,91284.0,0.04921185]
[1767517504855,0.01095422,91289.0,91284.0,0.04921185]
[1767517505654,0.06572465,91290.0,91284.0,0.04921185]
[1767517505801,0.0109541,91290.0,91284.0,0.04921185]
[1767517506377,0.01095422,91289.0,91284.0,0.04921185]
[1767517506884,0.0657247,91290.0,91284.0,0.04921185]
[1767517507086,0.0109541,91290.0,91284.0,0.04921185]
[1767517507275,0.0109541,91290.0,91284.0,0.06016667]
[1767517507630,0.01095422,91289.0,91284.0,0.04921185]
[1767517507835,0.01088551,91289.0,91284.0,0.04921185]
[1767517508036,0.06572473,91290.0,91284.0,0.04921185]
[1767517508859,0.01095422,91289.0,91284.0,0.04921185]
[1767517509060,0.06572473,91290.0,91284.0,0.04921185]
[1767517509260,0.0109541,91290.0,91284.0,0.04921185]
[1767517510394,0.06572465,91290.0,91283.0,0.01095494]
[1767517510602,0.01095422,91289.0,91283.0,0.01095494]
[1767517511122,0.0657247,91290.0,91283.0,0.01095494]
[1767517511291,0.0109541,91290.0,91284.0,0.01095482]
[1767517512493,0.0657241,91291.0,91284.0,0.01095482]
[1767517512702,0.06572467,91290.0,91283.0,0.01095494]
[1767517512896,0.01095422,91289.0,91283.0,0.01095494]
[1767517513213,0.01095398,91291.0,91284.0,0.01095482]
[1767517513364,0.0109541,91290.0,91282.0,0.01095506]
[1767517513596,0.01095422,91289.0,91282.0,0.06572994]
[1767517513972,0.01095422,91289.0,91283.0,0.01095494]
[1767517514177,0.06572487,91290.0,91283.0,0.01095494]
[1767517514630,0.0109541,91290.0,91284.0,0.01095482]
[1767517514836,0.06572432,91291.0,91284.0,0.01095482]
[1767517514997,0.06572432,91291.0,91284.0,0.06572892]
[1767517515202,0.01095398,91291.0,91284.0,0.06572892]
[1767517515421,0.01095398,91291.0,91285.0,0.0109547]
[1767517515932,0.01095398,91291.0,91284.0,0.01095482]
[1767517516249,0.0109541,91290.0,91283.0,0.01095494]
[1767517516655,0.01095422,91289.0,91282.0,0.06016691]
[1767517517069,0.0109541,91290.0,91283.0,0.01095494]
[1767517517229,0.0109541,91290.0,91284.0,0.01095482]
[1767517517567,0.06572399,91291.0,91284.0,0.01095482]
[1767517517940,0.0109541,91290.0,91283.0,0.0657293]
[1767517518510,0.0109541,91290.0,91284.0,0.01095482]
[1767517518920,0.0109541,91290.0,91283.0,0.0657293]
[1767517519215,0.06572462,91290.0,91283.0,0.01095494]
[1767517519554,0.06565591,91290.0,91283.0,0.01095494]
[1767517519899,0.0109541,91290.0,91284.0,0.01095482]
[1767517520180,0.01095398,91291.0,91285.0,0.0109547]
[1767517520384,0.06567898,91291.0,91284.0,0.06572865]
[1767517520568,0.0109541,91290.0,91283.0,0.06572907]
[1767517520786,0.0109541,91290.0,91284.0,0.01095482]
[1767517521576,0.06567898,91291.0,91284.0,0.01095482]
[1767517521764,0.0657248,91290.0,91283.0,0.01095494]